[Event "WCCC G10 2019"]
[Site "Weifang"]
[Date "2019.09.01"]
[Round "11.3"]
[White "Li, Rachael"]
[Black "Khamdamova, Afruza"]
[Result "1/2-1/2"]
[ECO "C54"]
[WhiteElo "1911"]
[BlackElo "1607"]
[Annotator "NA RC"]
[PlyCount "92"]
[EventDate "2019.08.21"]
[EventType "swiss"]
[EventCountry "CHN"]
[SourceTitle "playchess.com"]
[Source "ChessBase"]
[SourceQuality "1"]
[TimeControl "40/5400+30:1800+30"]

{[%evp 10,92,12,-20,-9,32767,32767,32767,32767,-53,-36,-57,-44,32767,32767,32767,32767,32767,32767,32767,32767,-58,-52,-41,32767,-42,-42,-33,0,-23,-19,32767,32767,-54,-46,-32,-39,-47,-40,-35,-56,-54,-55,-44,12,0,0,32767,32767,32767,0,32767,32767,0,0,32767,32767,32767,32767,0,0,0,0,0,0,0,0,32767,0,0,0,32767,0,32767,32767,32767,0,0,0,32767,32767,32767,32767,0,0]} 1. e4 {[%emt 0:00:00]} e5 {[%emt 0:00:00]} 2. Nf3 {[%emt 0:00:00]} Nc6 {[%emt 0:00:00]} 3. Bc4 {[%emt 0:00:00]} Nf6 {[%emt 0:00:00]} 4. d3 {[%emt 0:00:00]} Bc5 {[%emt 0:00:00]} 5. c3 {[%emt 0:00:00]} O-O {[%emt 0:00:13]} 6. Bb3 {[%emt 0:00:00] C54: Giuoco Piano: 4 c3 Nf6, main lines with 5 d4 and 5 d3} (6. O-O d5 7. exd5 Nxd5 8. Re1 Bg4 9. Nbd2 Nb6 10. h3 Bh5 11. Bb3 Qxd3 12. Nxe5 Bxd1 13. Nxd3 Bxb3 14. axb3 Be7 15. b4 a6 16. Ne4 Nd7 {1-0 (40) Giri,A (2797)-Harikrishna,P (2723) Shenzhen 2019}) 6... d5 {[%emt 0:00:38]} 7. Qe2 {[%emt 0:01:19]} h6 {[%emt 0:02:25]} 8. Nbd2 {[%emt 0:00:55]} Be6 {[%emt 0:03:06]} 9. Nf1 {[%emt 0:12:09]} Ng4 {[%emt 0:07:56]} 10. Ne3 {[%emt 0:00:32]} Nxe3 {[%emt 0:03:34]} 11. Bxe3 {[%emt 0:05:09]} d4 $146 {[%emt 0:00:24]} ({Predecessor:} 11... Bxe3 12. fxe3 dxe4 13. dxe4 Bxb3 14. axb3 {1-0 (53) Mantovani,R (2369)-Menoni,V (2228) Bratto 2002}) 12. Bd2 {[%emt 0:01:57]} Bxb3 {[%emt 0:00:53]} 13. axb3 {[%emt 0:00:02]} a5 {[%emt 0:00:07]} 14. O-O {[%emt 0:03:26]} Qe7 {[%emt 0:05:39]} 15. g3 {[%emt 0:12:28]} Qe6 {[%emt 0:08:40]} 16. c4 {[%emt 0:08:08]} Be7 {[%emt 0:11:59]} 17. Ne1 {[%emt 0:08:50]} f5 {[%emt 0:06:47]} 18. exf5 {[%emt 0:01:33]} Rxf5 {[%emt 0:09:02]} 19. Ng2 {[%emt 0:03:08]} Qf7 {[%emt 0:06:28]} 20. f4 {[%emt 0:04:51]} Rf8 {[%emt 0:03:33] [#]} 21. fxe5 {[%emt 0:04:24]} (21. g4 $1 $16 {[%cal Rg4f5]} Rf6 22. f5) 21... Rxe5 {[%emt 0:15:16]} ({Reject} 21... Nxe5 $6 22. Rxf5 Qxf5 23. Bf4 $14) 22. Qg4 {[%emt 0:01:15]} Rf5 {[%emt 0:00:54]} 23. Rxf5 {[%emt 0:03:07]} Qxf5 {[%emt 0:00:13]} 24. Qxf5 {[%emt 0:01:53]} Rxf5 {[%emt 0:00:06]} 25. Rf1 {[%emt 0:03:36]} Rxf1+ {[%emt 0:05:28]} 26. Kxf1 {[%emt 0:00:01]} Ne5 {[%emt 0:01:15]} (26... g5 $15) 27. Ke2 {[%emt 0:00:25]} b6 {[%emt 0:00:33]} 28. Bf4 {[%emt 0:00:26]} Bd6 {[%emt 0:00:26]} 29. Bxe5 {[%emt 0:00:19]} Bxe5 {[%emt 0:00:13]} 30. Kf3 {[%emt 0:00:36]} Kf7 {[%emt 0:00:48]} 31. Ke4 {[%emt 0:00:12]} Ke6 {[%emt 0:05:12]} 32. Nh4 {[%emt 0:01:19]} Bf6 {[%emt 0:00:18]} 33. Nf3 {[%emt 0:01:37]} c5 {[%emt 0:00:08]} 34. h3 {[%emt 0:04:56]} g6 {[%emt 0:00:32]} 35. g4 {[%emt 0:04:40]} g5 {[%emt 0:01:07]} 36. Ng1 {[%emt 0:01:02]} Be5 {[%emt 0:00:12]} 37. Ne2 {[%emt 0:00:33]} Bc7 {[%emt 0:00:33]} 38. Kf3 {[%emt 0:00:14]} Bd6 {[%emt 0:00:30]} 39. Ke4 {[%emt 0:01:46]} Bc7 {[%emt 0:00:08]} 40. Ng1 {[%emt 0:00:07]} Bf4 {[%emt 0:00:13]} 41. Ne2 {[%emt 0:32:00]} Bc7 {[%emt 0:30:07]} 42. Kf3 {[%emt 0:00:10]} Bd6 {[%emt 0:00:12]} 43. Ng3 {[%emt 0:01:21]} Bxg3 {[%emt 0:00:20]} 44. Kxg3 {[%emt 0:00:06]} Ke5 {[%emt 0:00:07]} 45. Kf3 {[%emt 0:00:17]} Kf6 {[%emt 0:00:08]} 46. Ke4 {[%emt 0:00:14] Ke5+} Ke6 $11 {[%emt 0:00:06]} 1/2-1/2

[Event "WCCC G10 2019"]
[Site "Weifang"]
[Date "2019.09.01"]
[Round "11.4"]
[White "Zhao, Yunqing"]
[Black "Feng, Eunice"]
[Result "1-0"]
[ECO "D77"]
[WhiteElo "1539"]
[BlackElo "1280"]
[Annotator "NA RC"]
[PlyCount "79"]
[EventDate "2019.08.21"]
[EventType "swiss"]
[EventCountry "CHN"]
[SourceTitle "playchess.com"]
[Source "ChessBase"]
[SourceQuality "1"]
[TimeControl "40/5400+30:1800+30"]

1. d4 {[%emt 0:00:00]} Nf6 {[%emt 0:00:00]} 2. c4 {[%emt 0:00:00]} g6 {[%emt 0:00:00]} 3. g3 {[%emt 0:00:00]} Bg7 {[%emt 0:00:00]} 4. Bg2 {[%emt 0:00:00]} O-O {[%emt 0:00:00]} 5. Nf3 {[%emt 0:00:00]} d5 {[%emt 0:00:04]} 6. O-O {[%emt 0:00:02]} dxc4 {[%emt 0:00:05]} 7. Na3 {[%emt 0:00:05]} c3 {[%emt 0:00:06]} 8. bxc3 {[%emt 0:00:03]} c5 {[%emt 0:00:06]} 9. e3 {[%emt 0:00:03]} Nc6 {[%emt 0:01:56]} 10. Qe2 {[%emt 0:00:55]} Bf5 {[%emt 0:10:13]} 11. Bb2 {[%emt 0:01:05]} Rc8 {[%emt 0:05:51]} 12. Rac1 {[%emt 0:01:29]} Qb6 {[%emt 0:02:26]} 13. Rfd1 {[%emt 0:03:31]} cxd4 {[%emt 0:08:30]} 14. cxd4 {[%emt 0:14:56]} Nb4 {[%emt 0:02:54]} 15. Bc3 {[%emt 0:20:04]} Ne4 {[%emt 0:07:48]} 16. Be1 {[%emt 0:02:27]} Nd5 {[%emt 0:07:47]} 17. Nb1 {[%emt 0:17:01]} Rxc1 {[%emt 0:28:23]} 18. Rxc1 {[%emt 0:00:11]} Rc8 {[%emt 0:00:30]} 19. Rxc8+ {[%emt 0:01:08]} Bxc8 {[%emt 0:00:05]} 20. Qc2 {[%emt 0:04:45]} Nd6 {[%emt 0:01:26]} 21. e4 {[%emt 0:04:34]} Nb4 {[%emt 0:00:16]} 22. Qb3 {[%emt 0:02:41]} Nc6 {[%emt 0:03:09]} 23. Qxb6 {[%emt 0:01:57]} axb6 {[%emt 0:00:06]} 24. d5 {[%emt 0:01:35]} Na5 {[%emt 0:02:24]} 25. e5 {[%emt 0:01:44]} Ndc4 {[%emt 0:03:43]} 26. Bc3 {[%emt 0:00:48]} Bg4 {[%emt 0:05:44]} 27. Nbd2 {[%emt 0:01:45]} e6 {[%emt 0:02:38]} 28. d6 {[%emt 0:00:46]} Bxf3 {[%emt 0:01:02]} 29. d7 {[%emt 0:01:11]} Nc6 {[%emt 0:00:09]} 30. Bxf3 {[%emt 0:00:16]} Bxe5 {[%emt 0:01:20]} 31. Nxc4 {[%emt 0:01:06]} Bxc3 {[%emt 0:00:07]} 32. Bxc6 {[%emt 0:00:05]} Bf6 {[%emt 0:00:10]} 33. Bxb7 {[%emt 0:00:06]} Kf8 {[%emt 0:01:04]} 34. Nxb6 {[%emt 0:00:07]} Ke7 {[%emt 0:00:09]} 35. Bc8 {[%emt 0:00:15]} Be5 {[%emt 0:00:36]} 36. a4 {[%emt 0:00:15]} Bc7 {[%emt 0:00:13]} 37. a5 {[%emt 0:00:08]} Kd8 {[%emt 0:00:16]} 38. Nc4 {[%emt 0:00:09]} Bb8 {[%emt 0:00:30]} 39. a6 {[%emt 0:00:08]} Ba7 {[%emt 0:00:08]} 40. Ne5 {[%emt 0:00:34]} 1-0

[Event "WCCC G10 2019"]
[Site "Weifang"]
[Date "2019.09.01"]
[Round "11.6"]
[White "Jiang, Tianyu"]
[Black "Kirtadze, Anastasia"]
[Result "0-1"]
[ECO "B55"]
[WhiteElo "1381"]
[BlackElo "1532"]
[Annotator "NA RC"]
[PlyCount "148"]
[EventDate "2019.08.21"]
[EventType "swiss"]
[EventCountry "CHN"]
[SourceTitle "playchess.com"]
[Source "ChessBase"]
[SourceQuality "1"]
[TimeControl "40/5400+30:1800+30"]

1. e4 {[%emt 0:00:00]} c5 {[%emt 0:00:43]} 2. Nf3 {[%emt 0:00:00]} d6 {[%emt 0:00:15]} 3. d4 {[%emt 0:00:00]} cxd4 {[%emt 0:01:45]} 4. Nxd4 {[%emt 0:00:00]} Nf6 {[%emt 0:00:26]} 5. f3 {[%emt 0:00:06]} e5 {[%emt 0:01:17]} 6. Nb3 {[%emt 0:00:16]} Be6 {[%emt 0:00:47]} 7. c4 {[%emt 0:00:52]} Nc6 {[%emt 0:04:29]} 8. Be3 {[%emt 0:01:41]} Be7 {[%emt 0:01:00]} 9. Nc3 {[%emt 0:00:15]} O-O {[%emt 0:07:07]} 10. Qd2 {[%emt 0:02:17]} a6 {[%emt 0:08:22]} 11. Be2 {[%emt 0:01:41]} Qc7 {[%emt 0:02:30]} 12. Rc1 {[%emt 0:00:33]} Qd8 {[%emt 0:10:24]} 13. O-O {[%emt 0:01:01]} Ne8 {[%emt 0:04:28]} 14. Nd5 {[%emt 0:04:01]} f5 {[%emt 0:09:18]} 15. Bd3 {[%emt 0:04:26]} f4 {[%emt 0:02:20]} 16. Bb6 {[%emt 0:03:46]} Qd7 {[%emt 0:00:53]} 17. Bf2 {[%emt 0:01:04]} Qd8 {[%emt 0:01:22]} 18. Na1 {[%emt 0:06:39]} Bf6 {[%emt 0:07:33]} 19. b4 {[%emt 0:04:11]} Bxd5 {[%emt 0:02:24]} 20. cxd5 {[%emt 0:00:09]} Nd4 {[%emt 0:01:00]} 21. Nc2 {[%emt 0:02:48]} Nxc2 {[%emt 0:00:16]} 22. Rxc2 {[%emt 0:00:30]} Bh4 {[%emt 0:00:50]} 23. Rfc1 {[%emt 0:01:34]} Bxf2+ {[%emt 0:00:37]} 24. Qxf2 {[%emt 0:00:34]} Kh8 {[%emt 0:07:41]} 25. Rc3 {[%emt 0:03:00]} Rg8 {[%emt 0:00:33]} 26. g3 {[%emt 0:03:07]} fxg3 {[%emt 0:00:51]} 27. hxg3 {[%emt 0:00:29]} Rf8 {[%emt 0:00:31]} 28. Kg2 {[%emt 0:03:11]} h6 {[%emt 0:01:02]} 29. a4 {[%emt 0:01:08]} Qg5 {[%emt 0:07:23]} 30. Re1 {[%emt 0:04:19]} Nf6 {[%emt 0:02:47]} 31. Qe3 {[%emt 0:02:49]} Qg6 {[%emt 0:00:27]} 32. Rg1 {[%emt 0:05:53]} Nh5 {[%emt 0:01:08]} 33. Kf2 {[%emt 0:04:39]} Rf7 {[%emt 0:01:00]} 34. Be2 {[%emt 0:07:07]} Raf8 {[%emt 0:00:43]} 35. g4 {[%emt 0:11:33]} Nf4 {[%emt 0:00:10]} 36. Bf1 {[%emt 0:07:46]} Qg5 {[%emt 0:01:03]} 37. Rh1 {[%emt 0:01:09]} Qe7 {[%emt 0:01:00]} 38. a5 {[%emt 0:02:26]} Kg8 {[%emt 0:01:21]} 39. Kg3 {[%emt 0:04:07]} Ng6 {[%emt 0:01:17]} 40. Be2 {[%emt 0:01:59]} Rf4 {[%emt 0:00:23]} 41. Bd1 {[%emt 0:32:23]} R4f6 {[%emt 0:32:08]} 42. Be2 {[%emt 0:00:36]} Nf4 {[%emt 0:00:42]} 43. Bd1 {[%emt 0:02:44]} Rg6 {[%emt 0:00:08]} 44. Be2 {[%emt 0:00:48]} h5 {[%emt 0:01:15]} 45. Bf1 {[%emt 0:01:14]} hxg4 {[%emt 0:00:49]} 46. fxg4 {[%emt 0:01:03]} Qg5 {[%emt 0:00:58]} 47. Be2 {[%emt 0:00:00]} Rh6 {[%emt 0:00:00]} 48. Bf3 {[%emt 0:00:00]} Rxh1 {[%emt 0:00:00]} 49. Bxh1 {[%emt 0:00:00]} Qh6 {[%emt 0:00:00]} 50. Bf3 {[%emt 0:00:00]} Qh3+ {[%emt 0:00:00]} 51. Kf2 {[%emt 0:00:00]} Qh2+ {[%emt 0:00:00]} 52. Ke1 {[%emt 0:00:00]} Ng2+ {[%emt 0:00:00]} 53. Bxg2 {[%emt 0:00:00]} Qxg2 {[%emt 0:00:00]} 54. Qe2 {[%emt 0:00:00]} Qg1+ {[%emt 0:00:00]} 55. Kd2 {[%emt 0:00:00]} Rf2 {[%emt 0:00:00]} 56. Rc8+ {[%emt 0:00:00]} Kh7 {[%emt 0:00:00]} 57. Qxf2 {[%emt 0:00:00]} Qxf2+ {[%emt 0:00:00]} 58. Kd1 {[%emt 0:00:00]} Qd4+ {[%emt 0:00:00]} 59. Ke1 {[%emt 0:00:00]} Qxe4+ {[%emt 0:00:00]} 60. Kf1 {[%emt 0:00:00]} Qf3+ {[%emt 0:00:00]} 61. Ke1 {[%emt 0:00:00]} Qxg4 {[%emt 0:00:00]} 62. Re8 {[%emt 0:00:00]} Qe4+ {[%emt 0:00:00]} 63. Kf2 {[%emt 0:00:00]} Qxd5 {[%emt 0:00:00]} 64. Re7 {[%emt 0:00:00]} e4 {[%emt 0:00:00]} 65. Ke3 {[%emt 0:00:00]} Qd3+ {[%emt 0:00:00]} 66. Kf2 {[%emt 0:00:00]} Qd2+ {[%emt 0:00:00]} 67. Kf1 {[%emt 0:00:00]} e3 {[%emt 0:00:00]} 68. Rxe3 {[%emt 0:00:00]} Qxe3 {[%emt 0:00:00]} 69. Kg2 {[%emt 0:00:00]} d5 {[%emt 0:00:00]} 70. Kf1 {[%emt 0:00:00]} d4 {[%emt 0:00:00]} 71. Kg2 {[%emt 0:00:00]} d3 {[%emt 0:00:00]} 72. Kf1 {[%emt 0:00:00]} d2 {[%emt 0:00:00]} 73. Kg2 {[%emt 0:00:00]} d1=Q {[%emt 0:00:00]} 74. Kh2 {[%emt 0:00:00]} Qdg1# {[%emt 0:00:00]} 0-1

[Event "WCCC G10 2019"]
[Site "Weifang"]
[Date "2019.09.01"]
[Round "11.9"]
[White "Indira Priyadharshini Subbu"]
[Black "Mou, Iris"]
[Result "0-1"]
[ECO "C12"]
[WhiteElo "1346"]
[BlackElo "1669"]
[Annotator "NA RC"]
[PlyCount "162"]
[EventDate "2019.08.21"]
[EventType "swiss"]
[EventCountry "CHN"]
[SourceTitle "playchess.com"]
[Source "ChessBase"]
[SourceQuality "1"]
[TimeControl "40/5400+30:1800+30"]

1. e4 {[%emt 0:00:22]} e6 {[%emt 0:00:00]} 2. d4 {[%emt 0:00:40]} d5 {[%emt 0:00:00]} 3. Nc3 {[%emt 0:00:42]} Nf6 {[%emt 0:00:00]} 4. Bg5 {[%emt 0:00:16]} Bb4 {[%emt 0:00:07]} 5. e5 {[%emt 0:00:45]} h6 {[%emt 0:00:08]} 6. exf6 {[%emt 0:01:10]} hxg5 {[%emt 0:00:09]} 7. fxg7 {[%emt 0:00:22]} Rg8 {[%emt 0:00:04]} 8. a3 {[%emt 0:02:37]} Ba5 {[%emt 0:01:34]} 9. Qh5 {[%emt 0:01:42]} Qf6 {[%emt 0:01:20]} 10. O-O-O {[%emt 0:02:21]} Bxc3 {[%emt 0:02:20]} 11. bxc3 {[%emt 0:00:22]} c5 {[%emt 0:02:02]} 12. dxc5 {[%emt 0:08:02]} Qxc3 {[%emt 0:03:26]} 13. Qxg5 {[%emt 0:02:16]} Qxa3+ {[%emt 0:03:01]} 14. Kb1 {[%emt 0:03:02]} Qb4+ {[%emt 0:02:05]} 15. Kc1 {[%emt 0:01:36]} Nc6 {[%emt 0:03:27]} 16. Qf6 {[%emt 0:04:55]} Qxc5 {[%emt 0:06:09]} 17. h4 {[%emt 0:08:16]} Nb4 {[%emt 0:03:04]} 18. Bd3 {[%emt 0:02:38]} Qe7 {[%emt 0:06:18]} 19. Qxe7+ {[%emt 0:13:13]} Kxe7 {[%emt 0:00:14]} 20. h5 {[%emt 0:00:13]} Nxd3+ {[%emt 0:00:20]} 21. Rxd3 {[%emt 0:00:11]} Rxg7 {[%emt 0:00:07]} 22. h6 {[%emt 0:00:19]} Rh7 {[%emt 0:00:19]} 23. g4 {[%emt 0:00:25]} f6 {[%emt 0:02:19]} 24. f4 {[%emt 0:00:50]} Bd7 {[%emt 0:03:55]} 25. g5 {[%emt 0:00:22]} fxg5 {[%emt 0:00:11]} 26. fxg5 {[%emt 0:00:10]} Be8 {[%emt 0:00:08]} 27. Rg3 {[%emt 0:01:16]} Bg6 {[%emt 0:00:29]} 28. Nf3 {[%emt 0:00:13]} Kd6 {[%emt 0:03:34]} 29. Nh4 {[%emt 0:01:00]} Rg8 {[%emt 0:00:39]} 30. Rf1 {[%emt 0:01:08]} Ke7 {[%emt 0:03:23]} 31. Rb3 {[%emt 0:04:47]} b6 {[%emt 0:02:19]} 32. Ra3 {[%emt 0:02:52]} a5 {[%emt 0:04:42]} 33. Rb3 {[%emt 0:00:56]} Be4 {[%emt 0:01:39]} 34. Rxb6 {[%emt 0:06:26]} Rxg5 {[%emt 0:00:12]} 35. Rb7+ {[%emt 0:05:10]} Kd6 {[%emt 0:00:43]} 36. Rxh7 {[%emt 0:00:59]} Bxh7 {[%emt 0:00:07]} 37. Rf7 {[%emt 0:00:45]} Rh5 {[%emt 0:00:26]} 38. Rxh7 {[%emt 0:00:18]} Rxh4 {[%emt 0:00:07]} 39. Ra7 {[%emt 0:02:21]} Rxh6 {[%emt 0:00:14]} 40. Rxa5 {[%emt 0:00:08]} Ke5 {[%emt 0:00:42]} 41. c4 {[%emt 0:31:38]} Ke4 {[%emt 0:33:03]} 42. cxd5 {[%emt 0:01:40]} exd5 {[%emt 0:00:16]} 43. Ra3 {[%emt 0:00:19]} Rh1+ {[%emt 0:00:52]} 44. Kd2 {[%emt 0:00:17]} Rh2+ {[%emt 0:00:50]} 45. Kd1 {[%emt 0:00:21]} Rf2 {[%emt 0:01:35]} 46. Ke1 {[%emt 0:00:57]} Rg2 {[%emt 0:01:39]} 47. Kd1 {[%emt 0:00:28]} Kd4 {[%emt 0:00:55]} 48. Ke1 {[%emt 0:01:32]} Kc4 {[%emt 0:01:04]} 49. Kd1 {[%emt 0:00:32]} d4 {[%emt 0:00:35]} 50. Rh3 {[%emt 0:02:17]} Ra2 {[%emt 0:01:22]} 51. Rg3 {[%emt 0:00:22]} Ra1+ {[%emt 0:00:41]} 52. Kd2 {[%emt 0:00:27]} Rh1 {[%emt 0:00:23]} 53. Rf3 {[%emt 0:00:27]} Rg1 {[%emt 0:01:34]} 54. Rh3 {[%emt 0:00:09]} Rg2+ {[%emt 0:00:27]} 55. Kd1 {[%emt 0:00:10]} Rb2 {[%emt 0:00:40]} 56. Kc1 {[%emt 0:00:28]} Re2 {[%emt 0:00:14]} 57. Kd1 {[%emt 0:00:13]} Rf2 {[%emt 0:00:13]} 58. Ke1 {[%emt 0:00:44]} Rc2 {[%emt 0:00:17]} 59. Kd1 {[%emt 0:00:07]} Rc3 {[%emt 0:00:25]} 60. Rh4 {[%emt 0:04:29]} Rg3 {[%emt 0:00:40]} 61. Ke2 {[%emt 0:04:38]} Kc3 {[%emt 0:01:42]} 62. Kf2 {[%emt 0:01:30]} Rg7 {[%emt 0:01:32]} 63. Rh3+ {[%emt 0:09:10]} Kd2 {[%emt 0:00:51]} 64. Ra3 {[%emt 0:00:32]} Rf7+ {[%emt 0:00:14]} 65. Kg2 {[%emt 0:00:14]} d3 {[%emt 0:00:27]} 66. Ra2+ {[%emt 0:00:37]} Ke1 {[%emt 0:00:20]} 67. Ra1+ {[%emt 0:00:38]} Ke2 {[%emt 0:00:11]} 68. Ra2+ {[%emt 0:00:05]} d2 {[%emt 0:00:06]} 69. Rb2 {[%emt 0:00:20]} Ke1 {[%emt 0:00:12]} 70. Rb1+ {[%emt 0:00:39]} d1=Q {[%emt 0:00:00]} 71. Rxd1+ {[%emt 0:00:00]} Kxd1 {[%emt 0:00:00]} 72. Kg3 {[%emt 0:00:00]} Ke2 {[%emt 0:00:00]} 73. Kg4 {[%emt 0:00:00]} Ke3 {[%emt 0:00:00]} 74. Kg5 {[%emt 0:00:00]} Ke4 {[%emt 0:00:06]} 75. Kg6 {[%emt 0:00:00]} Rf5 {[%emt 0:00:05]} 76. Kg7 {[%emt 0:00:03]} Ke5 {[%emt 0:00:07]} 77. Kg6 {[%emt 0:00:18]} Ke6 {[%emt 0:00:05]} 78. Kg7 {[%emt 0:00:06]} Rf6 {[%emt 0:00:05]} 79. Kg8 {[%emt 0:00:06]} Rf7 {[%emt 0:00:09]} 80. Kh8 {[%emt 0:00:23]} Kf6 {[%emt 0:00:06]} 81. Kg8 {[%emt 0:00:03]} Kg6 {[%emt 0:01:13]} 0-1

[Event "WCCC G10 2019"]
[Site "Weifang"]
[Date "2019.09.01"]
[Round "11.10"]
[White "Li, Shutong"]
[Black "Rouda Essa, Alserkal"]
[Result "1/2-1/2"]
[ECO "E94"]
[WhiteElo "1307"]
[BlackElo "1601"]
[Annotator "NA"]
[PlyCount "98"]
[EventDate "2019.08.21"]
[EventType "swiss"]
[EventCountry "CHN"]
[SourceTitle "playchess.com"]
[Source "ChessBase"]
[SourceQuality "1"]
[TimeControl "40/5400+30:1800+30"]

1. d4 {[%emt 0:00:00]} Nf6 {[%emt 0:00:00]} 2. Nf3 {[%emt 0:00:00]} g6 {[%emt 0:00:00]} 3. c4 {[%emt 0:00:08]} Bg7 {[%emt 0:00:00]} 4. Nc3 {[%emt 0:00:14]} O-O {[%emt 0:00:02]} 5. e4 {[%emt 0:00:14]} d6 {[%emt 0:00:05]} 6. Be2 {[%emt 0:00:27]} Nbd7 {[%emt 0:00:08]} 7. O-O {[%emt 0:00:31]} e5 {[%emt 0:00:07]} 8. d5 {[%emt 0:01:49]} Nc5 {[%emt 0:00:06]} 9. Nd2 {[%emt 0:00:17]} a5 {[%emt 0:00:24]} 10. Rb1 {[%emt 0:01:54]} Ne8 {[%emt 0:06:57]} 11. b3 {[%emt 0:01:28]} f5 {[%emt 0:00:37]} 12. a3 {[%emt 0:03:11]} f4 {[%emt 0:04:55]} 13. b4 {[%emt 0:08:06]} Na6 {[%emt 0:01:29]} 14. Na4 {[%emt 0:12:17]} axb4 {[%emt 0:22:18]} 15. axb4 {[%emt 0:00:21]} Bd7 {[%emt 0:02:45]} 16. Nc3 {[%emt 0:04:11]} h5 {[%emt 0:00:37]} 17. Ba3 {[%emt 0:06:54]} Nc5 {[%emt 0:14:42]} 18. Ra1 {[%emt 0:08:12]} Na4 {[%emt 0:00:20]} 19. Qb3 {[%emt 0:02:06]} h4 {[%emt 0:08:20]} 20. c5 {[%emt 0:04:24]} g5 {[%emt 0:03:10]} 21. Bd3 {[%emt 0:10:21]} Nf6 {[%emt 0:01:58]} 22. Nb5 {[%emt 0:03:27]} Be8 {[%emt 0:03:47]} 23. Bc1 {[%emt 0:01:55]} Nb6 {[%emt 0:08:46]} 24. cxb6 {[%emt 0:04:42]} Rxa1 {[%emt 0:00:20]} 25. Na3 {[%emt 0:00:14]} cxb6 {[%emt 0:01:25]} 26. Qb2 {[%emt 0:01:09]} Rxc1 {[%emt 0:00:42]} 27. Rxc1 {[%emt 0:00:16]} Bg6 {[%emt 0:04:06]} 28. Qc3 {[%emt 0:03:09]} Nxd5 {[%emt 0:00:24]} 29. Qc4 {[%emt 0:00:38]} Qe7 {[%emt 0:05:10]} 30. Qxd5+ {[%emt 0:00:53]} Bf7 {[%emt 0:00:12]} 31. Qb5 {[%emt 0:00:18]} Ra8 {[%emt 0:01:36]} 32. Nac4 {[%emt 0:02:13]} Be6 {[%emt 0:06:29]} 33. Nxb6 {[%emt 0:02:36]} Ra2 {[%emt 0:00:47]} 34. Bc2 {[%emt 0:03:05]} Kh7 {[%emt 0:01:47]} 35. Qf1 {[%emt 0:04:01]} g4 {[%emt 0:00:17]} 36. Nd5 {[%emt 0:02:15]} Qg5 {[%emt 0:00:12]} 37. Nc4 {[%emt 0:00:43]} Qg6 {[%emt 0:00:54]} 38. Nc3 {[%emt 0:00:57]} Ra8 {[%emt 0:00:38]} 39. Nxd6 {[%emt 0:01:21]} g3 {[%emt 0:00:41]} 40. Nf5 {[%emt 0:02:10]} Bf6 {[%emt 0:00:38]} 41. Nd5 {[%emt 0:31:41]} Bg5 {[%emt 0:03:16]} 42. Re1 {[%emt 0:00:00]} Ra2 {[%emt 0:01:12]} 43. Rc1 {[%emt 0:00:00]} f3 {[%emt 0:18:23]} 44. Nfe3 {[%emt 0:00:00]} gxf2+ {[%emt 0:03:13]} 45. Qxf2 {[%emt 0:00:00]} Bxd5 {[%emt 0:02:38]} 46. exd5 {[%emt 0:00:00]} Rxc2 {[%emt 0:01:01]} 47. Rxc2 {[%emt 0:00:00]} Bxe3 {[%emt 0:00:11]} 48. Qxe3 {[%emt 0:00:00]} Qxc2 {[%emt 0:00:19]} 49. Qxf3 {[%emt 0:00:00]} Qb1+ {[%emt 0:01:24]} 1/2-1/2